[Event "Swietokrzyskie GM Chess-ch 2022"]
[Site "Zagnansk"]
[Date "2022.05.03"]
[Round "5.3"]
[White "Samunenkov, FM Ihor"]
[Black "Mikrut, IM Dariusz"]
[Result "1/2-1/2"]
[ECO "D70"]
[WhiteElo "2372"]
[BlackElo "2361"]
[Annotator "TA"]
[PlyCount "118"]
[EventDate "2022.04.29"]
[EventCountry "POL"]
[SourceTitle "playchess.com"]
[Source "ChessBase"]
[SourceQuality "1"]
[TimeControl "40/5400+30:1800+30"]

{[%evp 17,118,13,31,14,3,13,1,11,129,109,120,87,104,85,84,84,88,93,93,69,68,68,79,36,37,21,52,0,0,0,0,0,18,8,16,4,56,49,64,43,79,82,81,79,80,72,159,133,120,128,136,131,106,136,101,50,50,52,51,51,50,50,50,51,204,66,66,66,66,49,66,66,66,66,66,66,73,66,66,66,66,65,65,9,65,65,65,65,65,0,65,0,65,65,65,65,65,65,65,65,65,0,0]} 1. d4 {[%emt 0:00:03]} Nf6 {[%emt 0:00:20]} 2. c4 {[%emt 0:00:07]} g6 {[%emt 0:00:06]} 3. Nf3 {[%emt 0:00:11][%cal Bg1f3,Bf3d4,Bd4c2,Bc2e3,Be3d5,Bd5f6][%mdl 32]} Bg7 {[%emt 0:00:08]} 4. g3 {[%emt 0:00:11]} c5 {[%emt 0:00:30]} 5. Nc3 {[%emt 0:06:34]} cxd4 {[%emt 0:00:28]} 6. Nxd4 {[%emt 0:00:14]} Nc6 {[%emt 0:00:04]} 7. Nc2 {[%emt 0:06:06]} d6 {[%emt 0:04:27]} 8. Bg2 {[%emt 0:02:46]} O-O {[%emt 0:04:03]} 9. O-O {[%emt 0:03:42]} Qa5 {[%emt 0:08:10]} 10. Ne3 {[%emt 0:11:06] A38: Symmetrical English vs ...g6: 4 Bg2 Bg7 5 Nf3 Nf6.} Ng4 {[%emt 0:02:16] [#]} 11. Ned5 $146 {[%emt 0:10:40]} ({Predecessor:} 11. Ncd5 Nxe3 12. Nxe3 Be6 13. Bd5 Qa6 14. Bxe6 fxe6 15. Qd3 Rac8 16. Bd2 Bxb2 17. Qe4 Nd8 {1-0 (109) Petrosian,T (2654)-Babujian,L (2500) Yerevan 2014}) 11... Nge5 {[%emt 0:07:44]} 12. Bg5 {[%emt 0:07:00]} e6 {[%emt 0:19:52]} (12... f6 $11 {keeps the balance.} 13. Bf4 Qd8) 13. Nf6+ $16 {[%emt 0:04:10]} Kh8 {[%emt 0:00:18] And now ...h6 would win.} 14. Qc1 {[%emt 0:09:03]} ({Avoid the trap} 14. Qxd6 $2 Rd8 15. Qa3 Qxa3 16. bxa3 h6 $19) 14... Nd4 {[%emt 0:33:48][%cal Oa5c3]} 15. Qf4 {[%emt 0:08:13]} Nd7 {[%emt 0:06:08]} 16. Qh4 {[%emt 0:02:21][%csl Gf6][%cal Rh4h7]} ({Much worse is} 16. Qxd4 $6 Qxg5 17. Nfe4 Bxd4 $11) 16... Nxf6 {[%emt 0:01:42]} 17. Bxf6 {[%emt 0:00:11]} Nf5 {[%emt 0:00:04]} 18. Bxg7+ {[%emt 0:00:50]} Kxg7 {[%emt 0:00:05]} 19. Qf4 {[%emt 0:01:32]} Qb4 {[%emt 0:01:16]} 20. Rab1 {[%emt 0:08:46]} (20. e4 {looks sharper.} Nh6 21. Qd2 Bd7 22. Rfd1) 20... e5 $1 {[%emt 0:00:27]} 21. Qe4 {[%emt 0:01:24]} Nd4 {[%emt 0:00:12]} 22. Qd3 {[%emt 0:01:52]} (22. e3 $14 Bf5 23. Qh4 (23. Qxb7 Qxb7 24. Bxb7 Rab8 $15) 23... Bxb1 24. exd4) 22... Bf5 $11 {[%emt 0:00:12]} 23. Be4 {[%emt 0:00:59]} Bxe4 {[%emt 0:00:29]} 24. Nxe4 {[%emt 0:00:40]} f5 {[%emt 0:00:51]} 25. Ng5 {[%emt 0:03:28]} h6 {[%emt 0:01:15]} 26. Nf3 {[%emt 0:00:14]} Nxf3+ {[%emt 0:00:27]} (26... Ne6 $11) 27. exf3 $14 {[%emt 0:00:19]} Rac8 {[%emt 0:00:27]} 28. b3 {[%emt 0:00:36]} Rfd8 {[%emt 0:00:12]} 29. Rfd1 {[%emt 0:01:39]} a6 {[%emt 0:00:05]} 30. Qd5 {[%emt 0:01:44]} Qb6 {[%emt 0:05:12]} 31. Rd3 {[%emt 0:01:47]} h5 {[%emt 0:00:11]} (31... Rc6 $142) 32. Rbd1 {[%emt 0:01:49]} Rc6 {[%emt 0:00:18]} 33. Qe6 {[%emt 0:01:27][%cal Oc4c5] Against Re8. aiming for c5!} Qc7 {[%emt 0:00:10][%cal Od6d5] [#]} 34. Rd5 $1 {[%emt 0:00:34]} b5 {[%emt 0:01:51]} 35. c5 {[%emt 0:01:08][%cal Rd5d6] White is more active.} Qf7 {[%emt 0:01:34] [#]} 36. Rxe5 {[%emt 0:03:43][%mdl 512]} Qxe6 {[%emt 0:02:04]} 37. Rxe6 {[%emt 0:00:04]} dxc5 {[%emt 0:00:11]} 38. Rxc6 {[%emt 0:00:47]} Rxd1+ $16 {[%emt 0:00:04][%mdl 4096] Endgame KR-KR} 39. Kg2 {[%emt 0:00:05]} Rc1 {[%emt 0:00:20]} 40. Rxa6 {[%emt 0:00:00]} c4 $2 {[%emt 0:00:00]} (40... g5 $14) 41. bxc4 {[%emt 0:20:38]} ({Better is} 41. Rb6 $18) 41... bxc4 $14 {[%emt 0:17:28]} 42. f4 {[%emt 0:00:36]} Ra1 {[%emt 0:01:04]} 43. a4 {[%emt 0:00:33]} c3 {[%emt 0:00:52] ...c2 is the strong threat.} 44. Ra7+ {[%emt 0:00:17]} Kf6 {[%emt 0:00:09] Threatens to win with ...c2.} 45. Rc7 {[%emt 0:00:05]} Rxa4 {[%emt 0:01:50]} 46. Rxc3 {[%emt 0:03:56]} Ra6 {[%emt 0:00:08]} 47. Kf3 {[%emt 0:03:29]} Re6 {[%emt 0:00:06]} 48. Re3 {[%emt 0:00:11] Strongly threatening Rxe6+.} Ra6 {[%emt 0:00:05]} 49. h4 {[%emt 0:01:37]} Rb6 {[%emt 0:00:05]} 50. Ke2 {[%emt 0:01:34]} (50. Ra3 $14) 50... Rb2+ {[%emt 0:00:07]} (50... Re6 $1 $11) 51. Kf1 $1 {[%emt 0:00:04]} Rb6 {[%emt 0:00:05]} 52. Re2 {[%emt 0:00:08]} Ra6 {[%emt 0:00:11]} 53. Ke1 {[%emt 0:00:10]} (53. Kg2 $14) 53... Rd6 {[%emt 0:00:15]} (53... Ra1+ $11 54. Kd2 Ra2+ 55. Ke3 Rxe2+ 56. Kxe2 Ke6) 54. Rd2 {[%emt 0:00:05]} ({White should try} 54. Ra2 $14) 54... Re6+ {[%emt 0:00:10]} ({Black should play} 54... Rxd2 $1 $11 55. Kxd2 Ke6) 55. Kd1 {[%emt 0:00:04]} Rc6 {[%emt 0:00:12]} 56. Rd3 {[%emt 0:00:26]} Ra6 {[%emt 0:00:19]} 57. Kd2 {[%emt 0:00:08]} Ra2+ {[%emt 0:00:07]} 58. Ke3 {[%emt 0:00:05]} Ra6 {[%emt 0:00:31]} 59. Kd4 {[%emt 0:00:37]} (59. Kf3 $14) 59... Ra2 {[%emt 0:00:12] Weighted Error Value: White=0.15 (very precise) /Black=0.21 (precise)} 1/2-1/2

[Event "Swietokrzyskie GM Chess-ch 2022"]
[Site "Zagnansk"]
[Date "2022.05.03"]
[Round "5.4"]
[White "Tazbir, GM Marcin"]
[Black "Budisavljevic, GM Luka"]
[Result "0-1"]
[ECO "B47"]
[WhiteElo "2506"]
[BlackElo "2509"]
[Annotator "TA"]
[PlyCount "116"]
[EventDate "2022.04.29"]
[EventCountry "POL"]
[SourceTitle "playchess.com"]
[Source "ChessBase"]
[SourceQuality "1"]
[TimeControl "40/5400+30:1800+30"]

{[%evp 20,116,16,8,18,0,0,7,12,0,0,0,0,5,2,3,8,0,0,-7,-9,-8,0,0,0,0,0,-10,-5,-31,-28,-22,-22,-22,-22,-30,-22,-32,-22,-25,-30,-40,-20,-29,-20,-20,-34,-24,-27,-49,-39,-41,0,-50,-35,-131,-121,-112,-127,-127,-66,-83,-34,-25,-19,-292,-133,-141,-29,-18,-34,-35,-8,-8,-8,-8,-8,-8,-8,-8,-8,-8,-8,-19,-27,-29970,-29970,-29971,-29972,-6422,-8,-29972,-29968,-29975,-29977,-29977,-29978,-29978,-29978]} 1. e4 {[%emt 0:00:03]} c5 {[%emt 0:00:11]} 2. Nf3 {[%emt 0:00:06]} e6 {[%emt 0:00:05]} 3. d4 {[%emt 0:00:04]} cxd4 {[%emt 0:00:06]} 4. Nxd4 {[%emt 0:00:03]} Nc6 {[%emt 0:00:10]} 5. Nc3 {[%emt 0:00:11]} Qc7 {[%emt 0:00:06]} 6. Be2 {[%emt 0:00:07]} Nf6 {[%emt 0:00:22]} 7. O-O {[%emt 0:02:06]} Be7 {[%emt 0:00:04]} 8. Be3 {[%emt 0:01:14]} O-O {[%emt 0:00:06]} 9. Kh1 {[%emt 0:00:52]} d6 {[%emt 0:00:46]} 10. f4 {[%emt 0:00:29]} Nxd4 {[%emt 0:00:35]} 11. Qxd4 {[%emt 0:02:03]} b6 {[%emt 0:00:14] B83: Sicilian Scheveningen: 6 Be2, lines without ...a6.} 12. Bf3 Ba6 {[%emt 0:06:17]} 13. Rfd1 {[%emt 0:06:58]} Rfd8 {[%emt 0:01:09] The position is equal.} 14. e5 {[%emt 0:08:01]} dxe5 {[%emt 0:00:10]} 15. Qxe5 {[%emt 0:00:04]} Rac8 {[%emt 0:00:11][%cal Ba8c8,Bc8c7,Bc7b7][%mdl 32] [#]} 16. Qxc7 $146 {[%emt 0:00:08]} ({Predecessor:} 16. Rxd8+ Bxd8 17. Rd1 Be7 18. h3 Kf8 19. Rd2 Nd7 20. Qh5 Nf6 21. Qe5 Nd7 22. Qxc7 Rxc7 {1-0 (30) Savanovic,A (2410)-Robles Aguilar,E (2376) Chess.com INT 2020}) 16... Rxc7 {[%emt 0:00:05]} 17. Rxd8+ {[%emt 0:00:06]} Bxd8 {[%emt 0:00:04]} 18. Rd1 {[%emt 0:00:26]} Be7 {[%emt 0:01:06]} 19. Kg1 {[%emt 0:02:30]} Kf8 {[%emt 0:02:43]} 20. g3 {[%emt 0:00:34]} Bb7 {[%emt 0:13:50]} 21. Bxb7 {[%emt 0:02:56]} Rxb7 {[%emt 0:00:38]} 22. Kg2 {[%emt 0:01:25]} Rc7 {[%emt 0:30:56][%cal Oe7a3]} 23. Kf3 {[%emt 0:01:58]} Bb4 {[%emt 0:06:57]} 24. Rd3 {[%emt 0:09:28]} Bxc3 {[%emt 0:01:26]} 25. Rxc3 {[%emt 0:01:52]} Rxc3 {[%emt 0:00:11]} 26. bxc3 $15 {[%emt 0:00:02][%mdl 4096] Endgame KB-KN} Nd7 {[%emt 0:01:57]} 27. Bd4 {[%emt 0:05:07]} f6 {[%emt 0:00:29]} 28. Ke4 {[%emt 0:02:20]} Ke7 {[%emt 0:00:06]} 29. Be3 {[%emt 0:10:55]} Kd6 {[%emt 0:00:23]} 30. c4 {[%emt 0:01:50]} Nc5+ {[%emt 0:11:03]} 31. Kd4 {[%emt 0:00:39]} e5+ {[%emt 0:00:59]} 32. fxe5+ {[%emt 0:00:20]} fxe5+ {[%emt 0:00:02]} 33. Kc3 {[%emt 0:00:05]} h5 {[%emt 0:08:54]} 34. Kb4 {[%emt 0:06:11]} Kc6 35. Kc3 {[%emt 0:05:39]} Kd6 {[%emt 0:07:44]} 36. Kb4 {[%emt 0:00:06]} Ne4 {[%emt 0:01:36]} 37. a3 {[%emt 0:10:00]} (37. Bc1 $15) 37... Kc6 $17 {[%emt 0:00:38]} 38. Kb3 {[%emt 0:00:46]} a5 {[%emt 0:02:24]} 39. Bc1 {[%emt 0:02:50]} Nf2 {[%emt 0:01:05]} (39... Kc7 $17) 40. Bb2 {[%emt 0:00:00]} Kd6 {[%emt 0:00:00]} (40... e4 $17 {...e3 is the strong threat.} 41. Bd4 Nd1) 41. c5+ $1 $15 {[%emt 0:18:09]} bxc5 {[%emt 0:22:59] aiming for ...Nd1.} 42. Kc4 $2 {[%mdl 8192] [#]} (42. Bc3 $11 {and White has nothing to worry.}) 42... Ng4 {[%emt 0:01:37]} (42... a4 $1 $19 {And now ...Ng4 would win.} 43. Bc1 Ng4) 43. h3 $17 {[%emt 0:00:25]} Nf2 {[%emt 0:01:05]} (43... Ne3+ $17 44. Kd3 Nd1) 44. a4 $1 $11 {[%emt 0:00:27]} Nxh3 {[%emt 0:03:44]} 45. Bc3 {[%emt 0:00:29]} Ng5 {[%emt 0:01:57] White must now prevent ...Ne4.} (45... e4 $5 {[%cal Rh3g1]} 46. Bxg7 Nf2 $15) 46. Bxa5 {[%emt 0:00:19]} Ne4 {[%emt 0:00:34]} 47. Be1 {[%emt 0:00:58]} Kc6 {[%emt 0:00:09]} 48. Kd3 {[%emt 0:00:39]} Nd6 {[%emt 0:00:34]} 49. c4 $1 {[%emt 0:00:41]} g5 {[%emt 0:01:02][%cal Bg7g5,Bg5h4][%mdl 32] Threatens to win with ...e4+.} 50. a5 $1 {[%emt 0:01:16]} e4+ {[%emt 0:02:40]} 51. Ke3 {[%emt 0:00:26]} Kb7 {[%emt 0:00:02] Strongly threatening ...Ka6.} 52. Bc3 $2 {[%emt 0:03:11][%mdl 8192] [#]} (52. Bf2 $11) 52... h4 $1 {[%emt 0:03:37]} 53. gxh4 {[%emt 0:01:30]} gxh4 {[%emt 0:00:01]} 54. Kf4 {[%emt 0:00:16]} Ka6 $2 {[%emt 0:00:46]} (54... h3 $19 {( -> ...h2)} 55. Kg3 Nxc4 56. Kxh3 Ne3) 55. Kg4 $2 {[%emt 0:01:07][%mdl 8192] [#]} (55. Be1 $11) 55... Nf5 $1 {[%emt 0:00:39][%mdl 512] Black mates.} 56. Kh3 {[%emt 0:04:24]} (56. Kxf5 h3) 56... e3 {[%emt 0:00:07][%cal Be4e3,Be3e2][%mdl 32]} 57. Kg4 {[%emt 0:00:10] [#]} e2 $1 {[%emt 0:00:30]} 58. Kh3 {[%emt 0:00:26]} (58. Be1 Ne3+) 58... Nd4 {[%emt 0:00:21] Weighted Error Value: White=0.41/Black=0.31} 0-1

[Event "Swietokrzyskie GM Chess-ch 2022"]
[Site "Zagnansk"]
[Date "2022.05.03"]
[Round "5.5"]
[White "Chatalbashev, GM Boris"]
[Black "Szpar, IM Milosz"]
[Result "1-0"]
[ECO "A25"]
[WhiteElo "2539"]
[BlackElo "2434"]
[Annotator "TA"]
[PlyCount "93"]
[EventDate "2022.04.29"]
[EventCountry "POL"]
[SourceTitle "playchess.com"]
[Source "ChessBase"]
[SourceQuality "1"]
[TimeControl "40/5400+30:1800+30"]

{[%evp 13,92,20,57,29,47,43,51,37,45,42,62,50,54,51,77,50,62,59,87,73,91,81,89,68,70,55,82,45,85,28,38,-3,18,17,32,51,70,-54,-50,-45,-42,-37,-23,-66,0,-99,-33,-219,-125,-284,-78,-77,0,-8,0,-584,31,36,42,7,0,-203,-225,-753,0,0,0,0,0,-624,-617,-600,-580,-921,-845,-927,0,0,2232,2208,29999]} 1. c4 {[%emt 0:00:03]} e5 {[%emt 0:00:17]} 2. g3 {[%emt 0:00:08]} Nc6 {[%emt 0:00:33]} 3. Bg2 {[%emt 0:00:09]} g6 {[%emt 0:00:27]} 4. Nc3 {[%emt 0:00:14]} Bg7 {[%emt 0:00:13]} 5. e3 {[%emt 0:01:42]} d6 {[%emt 0:01:07]} 6. Nge2 {[%emt 0:00:17]} h5 {[%emt 0:04:33]} 7. h4 {[%emt 0:02:13]} Nh6 {[%emt 0:04:57]} 8. Rb1 {[%emt 0:01:01] A25: English Opening vs King's Indian with ...Nc6 but without early d3.} Nf5 {[%emt 0:05:51]} 9. b4 {[%emt 0:01:51][%cal Bb2b4,Bb4b5][%mdl 32]} O-O {[%emt 0:13:26] [#]} 10. b5 $146 {[%emt 0:03:48] White is slightly better.} ({Predecessor:} 10. d3 Nh6 11. b5 Ne7 12. a4 Rb8 13. Qb3 Be6 14. Nd5 Kh7 15. Nec3 Neg8 16. Ne4 {0-1 (54) Masculo,J (2225)-Harmon,C (2240) Jacksonville 1990}) 10... Nce7 {[%emt 0:05:48][%cal Bc6e7,Be7g8,Bg8h6,Bh6g4][%mdl 32]} 11. a4 {[%emt 0:00:32]} c5 {[%emt 0:02:47]} 12. d3 {[%emt 0:05:23]} Rb8 {[%emt 0:03:52]} 13. Bd2 {[%emt 0:00:30]} Be6 {[%emt 0:01:43]} 14. Qb3 {[%emt 0:03:53]} Kh8 {[%emt 0:01:50]} 15. Ne4 {[%emt 0:10:14]} Ng8 {[%emt 0:05:05]} 16. N2c3 {[%emt 0:08:06]} Ngh6 {[%emt 0:01:19]} 17. Ng5 {[%emt 0:08:01]} Ng4 {[%emt 0:06:09]} 18. Bh3 {[%emt 0:06:10]} (18. Nxe6 fxe6 19. b6 a6 $11) 18... Bd7 {[%emt 0:02:20]} 19. Qd1 {[%emt 0:01:58]} Bh6 {[%emt 0:05:54]} 20. Nd5 {[%emt 0:03:33] Threatens to win with f3.} Kg7 {[%emt 0:08:36]} 21. Ne4 {[%emt 0:05:31] White is more active.} (21. Bxg4 hxg4 22. Ne4 (22. Qxg4 Nxe3 23. Qf3 Nc2+ 24. Kf1 Nd4 $15) 22... Ne7 $11) (21. Qe2 $16) 21... Ne7 $1 $11 {[%emt 0:04:36]} 22. Qe2 {[%emt 0:06:33]} (22. Nxd6 Nxd5 23. cxd5 Nf6 24. Bxd7 Qxd7 $11) 22... f5 {[%emt 0:02:52]} 23. Nec3 {[%emt 0:05:53]} (23. Nxd6 Be6 24. Bxg4 hxg4 $15) 23... f4 {[%emt 0:03:08]} 24. exf4 {[%emt 0:05:56]} Nf5 {[%emt 0:01:01]} 25. fxe5 {[%emt 0:01:22]} (25. Bxg4 $6 Nd4 26. Bxh5 (26. Qe4 $2 Bxg4 27. b6 a6 $19) 26... Nxe2 27. Bxe2 exf4 28. gxf4 Rh8 $11) (25. Qd1 $14) 25... Bxd2+ {[%emt 0:03:10]} 26. Qxd2 {[%emt 0:00:42]} (26. Kxd2 $2 Nd4 27. Bxg4 Nxe2 28. Bxe2 Rxf2 $19) 26... Nd4 $36 {[%emt 0:00:45][%mdl 2048] ...Nf3+ is the strong threat. White is under pressure.} 27. Bxg4 {[%emt 0:01:28]} Bxg4 {[%emt 0:00:30]} 28. Qb2 $1 {[%emt 0:01:18]} Bf3 {[%emt 0:07:59]} (28... dxe5 $15 29. O-O Qd7) 29. Rf1 {[%emt 0:02:05]} (29. O-O $11 {remains equal.}) 29... Qa5 {[%emt 0:01:02]} (29... dxe5 $17 30. Ne4 Be2) 30. Ne3 $2 {[%emt 0:01:35]} (30. exd6 $2 Rbe8+ 31. Ne3 Be2 $17) (30. b6 $15) 30... dxe5 {[%emt 0:02:18]} (30... Rbe8 $1 $19 {[%cal Re8e5]} 31. exd6 Be2) 31. Kd2 $2 {[%emt 0:05:42]} (31. Qd2 $17 {was the only defense.}) 31... e4 $2 {[%emt 0:00:13]} (31... Be2 $19 {is more deadly. Hoping for ...Rf3.} 32. f4 Bxf1 33. Rxf1 exf4 34. gxf4 Rbe8) 32. dxe4 $17 {[%emt 0:00:57]} Rbd8 {[%emt 0:00:24]} (32... Bxe4 $17 33. Rbd1 Bf3) 33. Kc1 {[%emt 0:00:50]} Kh7 {[%emt 0:00:32][%cal Of3e2] And now ...Be2! would win.} 34. Ned5 $2 {[%emt 0:01:35][%mdl 8192] [#]} (34. Ra1 $11) 34... Rde8 $2 {[%emt 0:00:29]} (34... Be2 $1 $19 {[%cal Re2f1][%mdl 512]} 35. Re1 (35. Nxe2 $2 Rxf2 36. Qxd4 Rxf1+ 37. Qd1 Rxd1+ 38. Kxd1 Qxa4+ 39. Ke1 Qxc4 $19) (35. Qa3 Bxf1) 35... Rxd5 36. exd5 (36. cxd5 $2 {perishes.} Rf3 $19) 36... Rf3 37. Rxe2 Rxc3+ 38. Kd1 Qxa4+ 39. Ke1 Qxc4) 35. Qd2 $14 {[%emt 0:01:09] Black must now prevent Re1.} Bg2 $1 {[%emt 0:00:57][%cal Bf3g2,Bg2f1,Bf1c4][%mdl 32]} 36. Rd1 {[%emt 0:00:18]} Rf3 {[%emt 0:00:48]} 37. Kb2 $2 {[%emt 0:01:21]} (37. b6 $11 axb6 38. Rb2 (38. Rxb6 Rxc3+ 39. Kb2 Qxb6+ 40. Nxb6 Rb3+ 41. Ka2 Rxb6 $17)) 37... Ref8 $19 {[%emt 0:00:29]} 38. Qg5 $2 {[%emt 0:03:59] [#]} (38. Ka3 Bh3 39. Rdc1) 38... Rxf2+ $2 {[%emt 0:00:52]} (38... Rxc3 $1 $19 {[%mdl 512]} 39. Rxd4 Rxf2+ 40. Rd2 Rxd2+ 41. Qxd2 Rb3+ $3 {[%mdl 512]} 42. Kc2 Qxd2+ 43. Kxd2 Rxb1 44. Nf6+ Kg7) 39. Rd2 $11 {[%emt 0:00:05] Really sharp!} Rxd2+ {[%emt 0:00:22]} 40. Qxd2 {[%emt 0:00:00]} Bf1 {[%emt 0:00:00]} 41. e5 $2 {[%emt 0:17:46][%mdl 8192]} (41. Rxf1 $11 Rxf1 42. Qg5) 41... Bxc4 $19 {[%emt 0:20:28]} 42. Nf6+ {[%emt 0:00:23]} Kg7 {[%emt 0:00:54]} 43. Nce4 {[%emt 0:07:35]} Qxa4 {[%emt 0:01:26]} 44. Nxh5+ {[%emt 0:00:20]} gxh5 $2 {[%emt 0:02:30]} ({Better is} 44... Kg8 $19 {( -> ...Qa2+)} 45. Nhf6+ {[#]} Rxf6 $1 {[%mdl 512]} 46. Nxf6+ Kf7 47. e6+ Bxe6) 45. Qg5+ $11 {[%emt 0:00:06]} Kf7 $2 {[%emt 0:01:21][%mdl 8192]} (45... Kh7 $11 46. Qxh5+ Kg8 47. Qg5+ Kh7 48. Qh5+ Kg8 49. Qg5+ Kh8 50. Qh5+ Kg8) 46. e6+ $18 {[%emt 0:00:48]} Ke8 {[%emt 0:02:59]} 47. Nd6# {White used his chance.  Weighted Error Value: White=0.93/Black=0.85} 1-0

[Event "Swietokrzyskie GM Chess-ch 2022"]
[Site "Zagnansk"]
[Date "2022.05.04"]
[Round "6.1"]
[White "Kowalski, IM Igor"]
[Black "Szpar, IM Milosz"]
[Result "1/2-1/2"]
[ECO "D20"]
[WhiteElo "2370"]
[BlackElo "2434"]
[Annotator "TA"]
[PlyCount "59"]
[EventDate "2022.04.29"]
[EventCountry "POL"]
[SourceTitle "playchess.com"]
[Source "ChessBase"]
[SourceQuality "1"]
[TimeControl "40/5400+30:1800+30"]

{[%evp 15,59,16,31,28,29,20,36,32,33,0,0,0,0,0,0,0,0,0,0,0,0,0,0,0,7,0,0,0,16,12,14,12,30,36,41,37,66,50,45,50,52,63,56,0,37,0]} 1. d4 {[%emt 0:00:01]} d5 {[%emt 0:00:16]} 2. c4 {[%emt 0:00:03]} dxc4 {[%emt 0:00:09]} 3. e3 {[%emt 0:00:04]} Nf6 {[%emt 0:00:14]} 4. Bxc4 {[%emt 0:00:05]} e6 {[%emt 0:00:11]} 5. Nf3 {[%emt 0:00:04]} a6 {[%emt 0:00:12]} 6. O-O {[%emt 0:01:13]} b5 {[%emt 0:00:04]} 7. Bd3 {[%emt 0:00:16] 7.Be2 is the hot move.} Bb7 {[%emt 0:00:07]} 8. a4 {[%emt 0:00:10]} b4 {[%emt 0:00:06]} 9. Nbd2 {[%emt 0:00:32] D26: Queen's Gambit Accepted: 4 e3 e6 5 Bxc5 c5 sidelines.} c5 {[%emt 0:01:35]} 10. Qe2 cxd4 {[%emt 0:00:30]} 11. exd4 {[%emt 0:02:41]} Be7 {[%emt 0:00:24]} 12. Ne4 {[%emt 0:02:33]} Nbd7 {[%emt 0:06:32][%cal Bb8d7,Bd7f6,Bf6d5][%mdl 32]} 13. Bf4 {[%emt 0:08:03][%cal Bc1f4,Bf4g3,Bg3e5][%mdl 32]} O-O {[%emt 0:06:55]} 14. Rfc1 {[%emt 0:01:22]} Nxe4 {[%emt 0:20:09]} 15. Bxe4 {[%emt 0:00:17]} Bxe4 {[%emt 0:00:25]} 16. Qxe4 {[%emt 0:00:05]} Nf6 {[%emt 0:00:24]} 17. Qb7 {[%emt 0:02:29]} Nd5 {[%emt 0:00:09]} 18. Bg3 {[%emt 0:10:04] [#]} h5 $146 {[%emt 0:13:55]} ({Predecessor:} 18... Bf6 19. a5 Qe7 20. Qc6 Rfd8 21. Rc4 Qf8 22. Rac1 Nc3 23. bxc3 Rdc8 24. cxb4 Rxc6 25. Rxc6 {½-½ (41) Shariyazdanov,A (2562)-Stevic,H (2527) Neum 2002}) 19. Rc6 {[%emt 0:11:09]} a5 {[%emt 0:09:13]} 20. Rac1 {[%emt 0:02:18]} Bg5 {[%emt 0:01:27]} 21. R1c5 {[%emt 0:02:34]} h4 {[%emt 0:05:55]} 22. Be5 {[%emt 0:14:09] [#] And now Rd6 would win.} Be7 {[%emt 0:04:14] Inhibits Rd6.} 23. Rc1 {[%emt 0:05:22]} h3 {[%emt 0:01:28]} 24. gxh3 {[%emt 0:05:14]} Bg5 {[%emt 0:06:48]} 25. R1c4 {[%emt 0:08:05] Rd6 is the strong threat.} Bh6 {[%emt 0:01:03]} 26. Rd6 {[%emt 0:04:26] White is more active.} (26. Bd6 Qf6 27. Ne5 (27. Bxf8 $2 Qg6+ 28. Ng5 Bxg5 $19) 27... Qg5+ 28. Ng4 Qg6 $17) 26... Qe8 {[%emt 0:01:14]} 27. Qc6 {[%emt 0:01:25]} Qe7 {[%emt 0:02:52]} 28. Rd7 {[%emt 0:06:55]} Qe8 {[%emt 0:00:35][%cal Od5b6] [#] Threatens to win with ...Nb6!} 29. Rd6 {[%emt 0:00:05]} Qe7 $1 {[%emt 0:00:30]} 30. Rd7 {[%emt 0:00:04] Weighted Error Value: White=0.06 (flawless) /Black=0.04 (flawless)} 1/2-1/2